bitfinex/quotes_ETHUSD_20260214
["timestamp","ask_amount","ask_price","bid_price","bid_amount"]
[1771074897323,0.0011,2074.8,2074.1,1.65167927]
[1771074897512,1.20604973,2074.8,2074.1,1.65167927]
[1771074897714,1.20604973,2074.8,2074.2,2.85696323]
[1771074897914,1.20604973,2074.8,2074.2,1.20528396]
[1771074898116,1.20604973,2074.8,2074.3,1.65167927]
[1771074898515,0.0011,2074.8,2074.3,1.65167927]
[1771074899524,0.0011,2074.8,2074.4,1.65167927]
[1771074900224,0.0011,2074.8,2074.4,2.85684095]
[1771074900430,0.0011,2074.8,2074.5,1.65167927]
[1771074901036,0.0011,2074.8,2074.5,1.538]
[1771074901234,1.5797384,2074.7,2074.0,1.4826004]
[1771074901527,0.0011,2074.8,2074.1,3.0216004]
[1771074901727,0.0011,2074.8,2074.2,1.9766004]
[1771074901956,2.78577381,2074.8,2074.2,1.09]
[1771074902301,1.5797384,2074.4,2073.8,1.538]
[1771074902915,1.5797384,2074.2,2073.4,1.4826004]
[1771074903147,6.51477208,2074.1,2073.5,1.4826004]
[1771074903299,1.5797384,2074.2,2073.5,1.4826004]
[1771074903506,6.51477208,2074.3,2073.5,1.4826004]
[1771074903911,1.5797384,2074.4,2073.6,2.68923311]
[1771074904131,1.20521004,2074.4,2073.7,1.4826004]
[1771074904840,2.78483355,2074.6,2073.7,1.4826004]
[1771074905051,1.20509515,2074.6,2073.7,1.4826004]
[1771074905405,9.29952929,2074.7,2073.7,1.4826004]
[1771074906122,0.0011,2074.8,2074.0,1.4826004]
[1771074906302,0.0011,2074.8,2074.2,1.4826004]
[1771074906508,1.20603617,2074.8,2074.2,1.4826004]
[1771074906846,0.0011,2074.8,2074.2,1.4826004]
[1771074907541,1.20604152,2074.8,2074.2,1.4826004]
[1771074908840,9.300552,2074.8,2074.1,1.20531405]
[1771074909048,0.0011,2074.8,2074.3,1.4826004]
[1771074911150,0.0011,2074.8,2074.3,2.68781332]
[1771074911347,0.0011,2074.8,2074.2,1.537]
[1771074911645,1.5808384,2074.8,2074.2,2.74227641]
[1771074912119,1.5808384,2074.8,2074.2,4.22487681]
[1771074913043,0.0011,2074.8,2074.3,1.4826004]
[1771074915161,0.0011,2074.8,2074.5,1.4826004]
[1771074915641,0.0011,2074.8,2074.6,1.539]
[1771074916048,0.0011,2074.8,2074.6,3.0216004]
[1771074916251,0.0011,2075.0,2074.7,1.54]
[1771074916460,0.0011,2075.0,2074.4,2.68776815]
[1771074916641,0.0011,2075.0,2074.5,1.54]
[1771074917148,0.0011,2075.0,2074.5,2.74508041]
[1771074920053,0.0011,2075.0,2074.5,4.22768081]
[1771074920367,0.0011,2075.0,2074.6,1.542]
[1771074922031,0.0011,2075.0,2074.6,2.74701954]
[1771074922230,0.0011,2075.0,2074.6,4.22961994]
[1771074923043,0.0011,2075.0,2074.7,1.4826004]
[1771074923929,0.0011,2075.0,2074.8,2.68753581]
[1771074925157,0.0011,2075.0,2074.9,1.4826004]
[1771074926155,0.0011,2075.0,2074.9,2.68747774]
[1771074926931,0.0011,2075.0,2074.9,4.23647774]
[1771074928272,0.0011,2075.0,2074.9,1.549]
[1771074928762,0.0011,2075.0,2074.8,1.20490427]
[1771074928963,0.0011,2075.0,2074.7,0.04819973]
[1771074929256,1.5808384,2075.0,2074.7,0.494]
[1771074929460,0.0011,2075.0,2074.7,0.494]
[1771074930342,0.0011,2075.0,2074.6,1.553]
[1771074930564,1.5808384,2075.0,2074.6,1.553]
[1771074930796,0.0011,2075.3,2074.7,1.4826004]
[1771074930948,0.03742358,2075.6,2074.6,1.553]
[1771074930949,1.5797384,2075.4,2074.8,1.553]
[1771074931566,1.4944248,2075.2,2074.8,1.553]
[1771074932675,1.20476121,2075.1,2074.6,2.75805126]
[1771074933378,2.69898967,2075.5,2074.7,1.46272403]
[1771074933556,1.4944248,2075.4,2074.7,1.46272403]
[1771074933884,1.4944248,2075.4,2074.8,1.553]
[1771074934754,2.69902016,2075.4,2074.9,1.20487734]
[1771074935370,1.20455243,2075.5,2074.9,1.20487734]
[1771074935573,2.69897723,2075.5,2074.9,1.20487734]
[1771074935783,2.69897723,2075.5,2074.9,2.66760137]
[1771074935784,1.20455243,2075.5,2074.9,2.66760137]
[1771074935989,1.4944248,2075.4,2074.5,1.46272403]
[1771074936170,1.4944248,2075.4,2074.6,1.553]
[1771074936585,1.4944248,2075.2,2074.4,1.20512108]
[1771074936899,2.69918601,2075.1,2074.6,1.553]
[1771074939084,2.69919908,2075.1,2074.6,1.553]
[1771074941069,2.69919908,2075.1,2074.5,1.20510479]
[1771074941390,1.59939235,2074.9,2074.2,1.20628018]
[1771074942273,1.59939235,2074.9,2074.3,0.001]
[1771074942589,4.26916663,2075.1,2074.3,1.54245113]
[1771074942985,1.59939235,2075.0,2074.3,1.54245113]
[1771074943192,2.80425434,2075.0,2074.4,1.20516775]
[1771074943987,2.80425434,2075.0,2074.3,0.001]
[1771074943988,1.59939235,2074.9,2074.3,0.001]
[1771074944693,1.59939235,2074.9,2074.3,1.20622524]
[1771074945491,4.26919705,2075.1,2074.4,1.54145113]
[1771074946470,1.59939235,2075.0,2074.3,1.20622524]
[1771074946694,1.59939235,2075.0,2074.3,2.74767637]
[1771074947569,2.80422443,2075.0,2074.3,2.74767637]
[1771074947774,2.66979376,2075.1,2074.4,1.54145113]
[1771074947975,4.26918611,2075.1,2074.4,1.54145113]
[1771074948162,1.59939235,2075.0,2074.3,1.20622524]
[1771074948582,1.59939235,2075.0,2074.3,2.74767637]
[1771074949396,2.66979581,2075.1,2074.4,1.54145113]
[1771074949607,1.465,2075.1,2074.4,8.05343942]
[1771074949812,1.20449967,2075.6,2074.7,1.54145113]
[1771074949982,1.20449967,2075.6,2074.8,1.54145113]
[1771074951475,1.20449967,2075.6,2074.9,1.20487734]
[1771074952291,1.20449967,2075.6,2074.9,2.74632847]
[1771074953397,1.20449967,2075.6,2075.0,1.54145113]
[1771074953783,6.06657748,2075.7,2075.1,1.20476121]
[1771074953976,2.99914977,2075.7,2075.1,2.74621234]
[1771074955702,1.79472589,2075.7,2075.1,2.74621234]
[1771074955907,4.59853457,2075.7,2074.9,1.54145113]
[1771074956094,1.59939235,2075.6,2075.0,1.20481724]
[1771074956677,2.99914222,2075.7,2075.0,2.74626837]
[1771074956982,1.59939235,2075.6,2074.8,1.54145113]
[1771074957177,1.59939235,2075.6,2074.8,2.74638283]
[1771074957578,1.59939235,2075.5,2074.5,1.54145113]
[1771074957811,1.59939235,2075.3,2074.6,1.20505157]
[1771074958483,1.59939235,2075.3,2074.6,2.7465027]
[1771074961215,1.20470316,2075.2,2074.6,1.54145113]
[1771074961422,1.20470316,2075.2,2074.6,2.74649674]
[1771074964017,2.66092644,2075.2,2074.6,1.20504561]
[1771074964229,2.66092644,2075.2,2074.3,4.82189376]
[1771074964230,1.45622328,2075.1,2074.3,0.001]
[1771074964582,1.45622328,2075.1,2074.3,1.20622418]
[1771074965588,2.66104255,2075.0,2074.3,0.001]
[1771074966524,1.45622328,2074.9,2074.3,0.001]
[1771074968724,2.66111971,2074.9,2074.3,0.001]
[1771074971432,1.45622328,2074.7,2074.3,0.001]
[1771074972990,1.20505157,2074.6,2074.3,0.001]
[1771074974089,2.66127485,2074.6,2074.3,0.001]
[1771074975010,1.45622328,2074.5,2074.3,0.001]
[1771074975323,1.20505157,2074.6,2073.2,1.2068615]
[1771074975324,1.45622328,2074.1,2073.2,1.2068615]
[1771074975496,7.96928482,2073.9,2073.2,1.2068615]
[1771074975698,7.96928482,2073.9,2073.2,0.001]
[1771074975699,1.45622328,2073.8,2073.2,0.001]
[1771074977217,1.45622328,2074.6,2073.4,1.52919563]
[1771074977414,1.45622328,2074.6,2073.5,1.52919563]
[1771074977415,2.93122328,2074.6,2073.5,1.52919563]
[1771074977726,1.475,2074.6,2073.5,1.52919563]
[1771074978298,1.475,2074.6,2073.6,5.353033]
[1771074978499,1.475,2074.6,2073.7,1.52919563]
[1771074978704,3.52919451,2074.8,2073.7,1.52919563]
[1771074979128,1.45622328,2074.7,2073.9,1.52919563]
[1771074979311,1.45622328,2074.7,2073.7,2.73473302]
[1771074979631,1.45622328,2074.7,2073.5,2.73485371]
[1771074979805,1.45622328,2074.7,2073.4,1.20570768]
[1771074980011,1.45622328,2074.7,2073.4,2.73490331]
[1771074981603,1.45622328,2074.7,2073.5,1.52919563]
[1771074981604,1.45622328,2074.5,2073.5,1.52919563]
[1771074981805,2.93122328,2074.4,2073.5,1.52919563]
[1771074982207,1.45622328,2074.3,2073.5,1.52919563]
[1771074984744,2.66144928,2074.3,2073.6,2.73482834]
[1771074985340,2.66149213,2074.3,2073.6,2.73482834]
[1771074986536,1.45622328,2074.2,2073.5,1.2056815]
[1771074986743,1.20534207,2074.1,2073.5,2.73487713]
[1771074988348,1.20534207,2074.1,2073.3,0.001]
[1771074988349,1.45622328,2074.0,2073.3,0.001]
[1771074988516,1.45622328,2073.9,2073.3,0.001]
[1771074989031,1.45622328,2073.7,2073.3,0.001]
[1771074989412,1.45622328,2073.7,2073.2,0.001]
[1771074989612,1.45622328,2073.7,2073.0,0.001]
[1771074989613,1.475,2073.6,2073.0,1.52919563]
[1771074990019,0.868,2073.9,2073.0,1.52919563]
[1771074990422,0.16614062,2073.9,2073.0,1.52919563]
[1771074990722,1.20524304,2074.3,2073.0,1.52919563]
[1771074991135,2.66146632,2074.3,2073.2,1.52919563]
[1771074992640,2.66146632,2074.3,2073.3,1.56231489]
[1771074993425,2.66146632,2074.3,2073.4,2.7680639]
[1771074994142,1.55012686,2074.2,2073.4,1.20574901]
[1771074994342,1.55012686,2074.2,2073.4,2.7680639]
[1771074994657,1.20524304,2074.3,2073.5,1.56231489]
[1771074995965,2.7553699,2074.3,2073.5,1.56231489]
[1771074996564,1.55012686,2074.2,2073.5,1.56231489]
[1771074997524,1.55012686,2074.2,2073.3,1.20580197]
[1771074997765,1.55012686,2074.2,2073.0,2.76829075]
[1771074997945,1.20534207,2074.1,2073.3,1.56231489]
[1771074998253,1.20531482,2074.2,2073.3,1.56231489]
[1771074998459,6.874,2074.4,2073.4,1.56231489]
[1771074998949,0.868,2074.6,2073.4,1.56231489]
[1771074999150,0.868,2074.6,2073.6,1.56231489]
[1771074999354,0.868,2074.6,2073.8,1.56231489]
[1771074999652,2.07305478,2074.6,2073.8,1.56231489]
[1771075000154,0.868,2074.6,2074.0,1.56231489]
[1771075000358,2.07305934,2074.6,2074.0,1.56231489]
[1771075001022,0.868,2074.6,2074.0,1.56231489]
[1771075002259,0.868,2074.6,2074.2,1.54498299]
[1771075002475,0.37223144,2075.0,2074.2,1.54498299]
[1771075004563,0.37223144,2075.0,2073.9,1.54498299]
[1771075004564,1.45134462,2074.9,2073.9,1.54498299]
[1771075004728,1.45134462,2074.9,2074.0,1.54498299]
[1771075005949,1.57705309,2075.0,2074.0,1.54498299]
[1771075006188,3.02839771,2075.0,2074.0,1.54498299]
[1771075006369,1.57705309,2075.0,2074.1,1.20534207]
[1771075006554,3.02839771,2075.0,2074.1,2.75032506]
[1771075007277,1.57705309,2075.0,2074.2,1.54498299]
[1771075007845,0.37223144,2075.0,2074.2,1.54498299]
[1771075008646,0.0011,2075.2,2074.7,1.54498299]
[1771075010786,0.0011,2075.2,2074.7,2.74993164]
[1771075011282,0.0011,2075.2,2074.5,4.29106423]
[1771075011447,0.0011,2075.2,2074.6,1.54498299]
[1771075014463,0.0011,2075.2,2074.6,2.75003316]
[1771075015001,0.0011,2075.2,2074.6,2.75001559]
[1771075015279,0.0011,2075.2,2074.5,4.29108946]
[1771075015450,1.45244462,2075.2,2074.4,2.75010601]
[1771075015882,1.45244462,2075.2,2074.4,1.54498299]
[1771075016454,1.45134462,2075.0,2074.2,3.08598299]
[1771075016755,1.45134462,2075.0,2074.2,1.54498299]
[1771075016949,1.20476121,2075.1,2074.2,1.54498299]
[1771075016950,2.65610583,2075.1,2074.2,1.54498299]
[1771075017150,1.45134462,2075.0,2074.2,1.54498299]
[1771075019593,1.20487734,2074.9,2074.2,1.54498299]
[1771075020894,1.20487734,2074.9,2074.1,1.20533044]
[1771075020895,2.65622196,2074.9,2074.0,2.75034788]
[1771075021096,1.45134462,2074.8,2074.0,1.54498299]
[1771075021700,1.20499349,2074.7,2073.9,0.001]
[1771075021882,1.41020359,2074.6,2073.9,0.001]
[1771075023029,1.41020359,2074.6,2073.7,0.001]
[1771075023183,1.41020359,2074.6,2073.1,1.40357401]
[1771075023184,1.41020359,2074.4,2073.1,1.40357401]
[1771075023779,1.20522585,2074.3,2073.3,1.40357401]
[1771075024010,2.61542944,2074.3,2073.3,1.40357401]
[1771075024215,2.61542944,2074.3,2073.1,1.20588781]
[1771075024216,1.41020359,2074.1,2073.1,1.20588781]
[1771075024509,1.41020359,2074.1,2073.0,1.40457401]
[1771075024675,1.41020359,2074.1,2073.0,2.61055068]
[1771075025012,1.41020359,2074.1,2073.0,1.40457401]
[1771075025296,1.41020359,2074.1,2073.0,0.001]
[1771075025469,1.41020359,2074.1,2073.0,2.61054662]
[1771075025668,1.41020359,2074.1,2073.0,2.61055378]
[1771075025900,2.61560378,2074.0,2073.0,2.61055378]
[1771075026406,1.41020359,2073.9,2073.0,2.61055378]
[1771075029311,1.41020359,2073.7,2073.0,0.001]
[1771075031522,1.20563271,2073.6,2073.0,0.001]
[1771075032518,2.6158363,2073.6,2073.0,0.001]
[1771075032688,1.41020359,2073.5,2073.0,0.001]
[1771075033529,1.20574901,2073.4,2073.0,0.001]
[1771075033995,2.6159526,2073.4,2073.0,0.001]
[1771075034624,1.41020359,2073.3,2072.6,0.001]
[1771075034824,1.41020359,2073.1,2072.6,0.001]
[1771075035492,1.20598166,2073.0,2072.6,0.001]
[1771075035689,2.61618525,2073.0,2072.6,0.001]
[1771075036129,1.41020359,2072.9,2072.4,0.001]
[1771075037700,2.61630162,2072.8,2072.4,0.001]
[1771075038199,1.41020359,2072.7,2072.2,0.001]
[1771075038615,1.41020359,2072.6,2072.2,0.001]
[1771075039641,1.20622068,2072.6,2072.2,0.001]
[1771075040335,2.67696899,2073.1,2072.2,1.40457401]
[1771075040630,1.20580968,2073.3,2072.4,1.40357401]
[1771075040819,1.49884154,2073.4,2072.6,1.40357401]
[1771075041137,1.41020359,2073.3,2072.2,0.001]
[1771075041829,1.41020359,2073.1,2072.2,1.20744725]
[1771075042035,1.41020359,2073.1,2072.2,0.001]
[1771075042209,1.471,2073.0,2072.2,0.001]
[1771075042409,1.41020359,2072.9,2072.2,0.001]
[1771075044124,1.20609803,2072.8,2072.2,0.001]
[1771075044636,1.20609803,2072.8,2072.2,1.40457401]
[1771075044815,2.67701661,2073.0,2072.2,1.40457401]
[1771075045016,1.471,2073.0,2072.4,1.40357401]
[1771075046216,1.471,2073.0,2072.5,1.20627261]
[1771075047115,1.20700999,2073.2,2072.5,2.60984662]
[1771075047319,1.20700999,2073.2,2072.5,1.20627261]
[1771075049647,1.20700999,2073.2,2072.4,6.22870218]
[1771075051043,0.0011,2073.2,2072.5,1.40357401]
[1771075051843,0.0011,2073.2,2072.1,1.527]
[1771075051844,1.45708898,2072.3,2071.3,1.38715507]
[1771075052043,3.25841165,2072.2,2071.4,1.38915507]
[1771075052216,1.85385965,2072.1,2071.4,1.38615507]
[1771075052416,1.80385965,2072.1,2071.5,1.38915507]
[1771075052630,1.80385965,2072.1,2071.5,1.38615507]
[1771075052941,1.70385965,2072.1,2071.6,0.003]
[1771075053846,1.2065637,2072.0,2071.6,0.003]
[1771075054145,3.03042335,2072.0,2071.3,1.38615507]
[1771075054717,3.03042335,2072.0,2071.1,1.7020521]
[1771075054950,3.03042335,2072.0,2071.2,1.38615507]
[1771075055153,4.48751233,2072.0,2070.9,1.38615507]
[1771075055446,1.45708898,2071.9,2070.9,1.38615507]
[1771075056150,2.66376916,2071.8,2070.9,1.38615507]
[1771075056751,2.66376916,2071.8,2070.7,1.38615507]
[1771075056752,1.45708898,2071.7,2070.7,1.38615507]
[1771075057325,1.45708898,2071.6,2070.5,1.38615507]
[1771075057551,1.45708898,2071.6,2069.8,1.38615507]
[1771075057552,1.45708898,2071.5,2069.8,1.38615507]
[1771075057739,1.45708898,2071.5,2070.0,1.38615507]
[1771075057943,1.45708898,2071.5,2070.1,2.00315507]
[1771075058140,1.45708898,2071.5,2070.4,1.38615507]
[1771075058141,1.20691319,2071.4,2070.4,1.38615507]
[1771075058347,2.66400217,2071.4,2070.8,0.001]
[1771075058548,2.66400217,2071.4,2070.2,2.59372306]
[1771075058549,1.45708898,2071.3,2070.2,2.59372306]
[1771075059227,1.48,2071.2,2070.2,2.59374461]
[1771075059465,1.48,2071.2,2070.6,0.001]
[1771075059664,2.93708898,2071.2,2070.2,2.59376312]
[1771075059951,2.93708898,2071.2,2070.3,1.38615507]
[1771075060151,2.93708898,2071.2,2070.2,1.20860805]
[1771075060152,1.20708802,2071.1,2070.2,0.001]
[1771075060336,2.73721256,2071.1,2070.2,0.001]
[1771075061036,4.82745552,2071.5,2070.4,1.41796233]
[1771075061360,1.20685493,2071.5,2070.6,1.41796233]
[1771075061544,0.67293002,2071.4,2070.6,1.41796233]
[1771075062647,1.87986012,2071.4,2070.7,1.20732119]
[1771075062854,0.67293002,2071.3,2070.7,1.20732119]
[1771075063375,0.67293002,2071.3,2070.7,2.62528352]
[1771075064041,0.67293002,2071.3,2070.8,1.41796233]
[1771075064557,4.82649498,2071.9,2070.8,1.41796233]
[1771075064558,4.82492171,2072.6,2071.0,1.41796233]
[1771075064859,0.04085362,2071.6,2071.0,1.41796233]
[1771075066628,1.53012454,2071.5,2070.5,2.6253729]
[1771075066856,1.53012454,2071.5,2070.6,2.94996233]
[1771075067051,1.24765178,2071.6,2070.7,1.41796233]
[1771075067762,1.53012454,2071.5,2070.5,2.73941057]
[1771075068437,1.53012454,2071.5,2070.5,1.532]
[1771075068636,1.53012454,2071.5,2070.5,2.73943303]
[1771075068970,1.53012454,2071.5,2070.4,1.20745254]
[1771075068971,1.53012454,2071.3,2070.4,1.20745254]
[1771075070981,1.53012454,2071.3,2069.6,1.41796233]
[1771075070982,8.71993927,2070.7,2069.6,1.41796233]
[1771075071270,1.484,2070.6,2069.6,1.41796233]
[1771075071483,1.53012454,2070.7,2069.7,6.80132392]
[1771075071679,1.53012454,2070.7,2069.3,1.41796233]
[1771075071891,1.53012454,2070.7,2069.3,6.80132392]
[1771075072038,1.53012454,2070.7,2069.3,5.38336159]
[1771075072359,1.53012454,2070.7,2070.1,0.001]
[1771075072564,1.53012454,2070.7,2069.3,5.38336159]
[1771075072771,1.53012454,2070.6,2069.3,5.38336159]
[1771075072971,2.73756235,2070.5,2069.9,0.001]
[1771075073165,2.73756235,2070.5,2069.9,5.38436159]
[1771075073935,2.37512454,2070.8,2069.9,5.38436159]
[1771075074246,1.20732119,2070.7,2069.9,5.38436159]
[1771075074449,2.73744573,2070.7,2069.9,5.38436159]
[1771075075369,2.73744573,2070.7,2069.5,4.83300584]
[1771075075370,1.53012454,2070.6,2069.5,1.20901368]
[1771075076453,1.53012454,2070.6,2069.5,0.001]
[1771075076653,1.53012454,2070.6,2069.5,1.20901574]
[1771075077042,2.73756235,2070.5,2069.5,0.001]
[1771075077855,2.73756235,2070.5,2069.5,1.41896233]
[1771075078580,1.53012454,2070.6,2069.5,1.41896233]
[1771075079254,2.05229856,2070.8,2069.7,1.41796233]
[1771075079866,2.05226769,2070.8,2069.7,1.41796233]
[1771075080651,0.845,2070.8,2069.7,1.41796233]
[1771075080860,0.845,2070.8,2069.9,1.41796233]
[1771075081260,0.845,2070.8,2069.6,1.20796289]
[1771075081261,3.73258792,2070.8,2069.7,1.59733374]
[1771075081488,3.73258802,2070.8,2069.7,1.59733374]
[1771075081855,0.845,2070.8,2069.7,1.59733374]
[1771075082082,2.05226511,2070.8,2069.7,1.59733374]
[1771075083082,0.845,2070.8,2069.7,1.59733374]
[1771075083389,0.845,2070.8,2069.8,1.20784616]
[1771075083584,0.845,2070.8,2069.9,1.59733374]
[1771075083749,2.05226716,2070.8,2069.9,1.59733374]
[1771075083975,2.05226716,2070.8,2069.5,0.001]
[1771075083976,1.9728365,2070.7,2069.5,0.001]
[1771075084153,1.86717449,2070.4,2069.1,2.25654644]
[1771075084554,1.68031825,2070.4,2069.1,2.25654644]
[1771075084762,4.16481029,2070.1,2069.2,1.59733374]
[1771075085088,1.68031825,2070.6,2069.2,1.59733374]
[1771075085256,0.18685624,2070.7,2069.2,1.59733374]
[1771075085453,1.68031825,2070.3,2068.9,1.59733374]
[1771075085783,1.99470302,2070.2,2069.0,1.59733374]
[1771075085988,1.504,2070.2,2069.0,1.59733374]
[1771075086155,1.505,2070.2,2069.0,1.59733374]
[1771075086575,2e-08,2070.3,2069.9,0.024155]
[1771075086781,2e-08,2070.3,2069.1,1.59733374]
[1771075087556,1.20755446,2070.3,2069.3,1.59733374]
[1771075088670,1.53921731,2070.4,2069.3,1.59733374]
[1771075090189,1.53921731,2070.4,2069.4,1.20807963]
[1771075090687,0.33169661,2070.4,2069.5,1.59733374]
[1771075091403,1.53919648,2070.4,2069.5,1.59733374]
[1771075093595,3.08922137,2070.4,2069.3,1.20813801]
[1771075093769,0.33169661,2070.4,2069.4,1.59733374]
[1771075094265,1.53919321,2070.4,2069.5,3.14933374]
[1771075095000,1.53919321,2070.4,2069.5,1.59733374]
[1771075099403,3.07768557,2070.4,2069.3,1.59733374]
[1771075099586,1.53919321,2070.4,2069.3,1.59733374]
[1771075100304,1.53921179,2070.4,2069.3,1.59733374]
[1771075100507,1.53921179,2070.4,2069.5,1.59733374]
[1771075102803,1.53921179,2070.4,2069.6,1.59733374]
[1771075103308,0.24867471,2070.4,2069.8,1.59733374]
[1771075103481,0.0011,2070.7,2069.9,1.59733374]
[1771075104501,0.0011,2070.7,2070.1,1.59733374]
[1771075105986,1.53882894,2071.2,2070.1,1.59733374]
[1771075106610,1.53882894,2071.2,2070.3,1.59733374]
[1771075107708,1.53882468,2071.2,2070.3,1.59733374]
[1771075107915,1.53882411,2071.2,2070.3,1.59733374]
[1771075108709,1.53882411,2071.2,2070.5,1.59733374]
[1771075108901,0.331794,2071.2,2070.5,1.59733374]
[1771075110326,1.68031825,2071.1,2070.1,1.59733374]
[1771075110494,3.18331825,2071.1,2070.1,1.59733374]
[1771075110892,1.2071463,2071.0,2069.6,1.59733374]
[1771075111120,2.97820397,2071.0,2069.6,1.59733374]
[1771075111416,1.77105767,2070.9,2069.6,1.59733374]
[1771075111714,1.77105767,2070.9,2069.6,3.15833374]
[1771075111908,1.77105767,2070.9,2069.7,2.01931704]
[1771075113115,1.76509276,2070.7,2069.7,2.01931704]
[1771075113489,1.76509276,2070.7,2069.4,2.01931704]
[1771075113688,1.76509276,2070.7,2069.1,1.2082123]
[1771075113927,1.76509276,2070.7,2069.1,4.31452934]
[1771075114126,1.76509276,2070.7,2069.2,2.01931704]
[1771075114913,0.18685624,2070.6,2069.2,2.01931704]
[1771075115124,1.20743781,2070.5,2069.2,3.2274607]
[1771075115286,1.20743781,2070.5,2069.2,2.01931704]
[1771075115287,1.75903941,2070.4,2069.2,2.01931704]
[1771075115728,1.75598006,2070.2,2069.0,0.001]
[1771075116786,1.75598006,2070.2,2069.0,2.02031704]
[1771075116994,1.75598006,2070.2,2069.1,2.01931704]
[1771075117230,1.20767112,2070.1,2069.1,2.01931704]
[1771075118295,1.20767112,2070.1,2069.0,0.001]
[1771075118296,1.74981781,2069.9,2068.4,2.01931704]
[1771075118502,1.74675918,2069.5,2068.1,2.01931704]
[1771075118704,8.07362503,2069.6,2068.1,2.01931704]
[1771075119012,1.1,2069.9,2068.1,2.01931704]
[1771075119216,1.20790452,2069.7,2068.3,2.01931704]
[1771075119832,1.20787447,2069.8,2068.5,2.01931704]
[1771075120029,1.20787447,2069.8,2068.7,2.01931704]
[1771075120234,1.20787447,2069.8,2068.3,1.96931704]
[1771075120415,1.20787447,2069.8,2068.4,2.05022236]
[1771075120603,1.79486394,2069.7,2068.4,2.05022236]
[1771075121530,1.20796289,2069.6,2068.5,2.05022236]
[1771075123426,4.83185156,2069.8,2068.5,2.05022236]
[1771075123608,4.83185156,2069.8,2068.6,2.05022236]
[1771075124442,1.20778781,2069.9,2068.6,2.05022236]
[1771075125436,1.78208991,2069.8,2068.5,2.05022236]
[1771075125738,1.20778781,2069.9,2068.5,2.05022236]
[1771075127410,1.20778781,2069.9,2068.7,2.05022236]
[1771075129208,1.20778781,2069.9,2068.8,2.427]
[1771075129445,1.20778781,2069.9,2068.8,4.47722236]
[1771075129955,1.20778781,2069.9,2068.9,1.20837159]
[1771075130114,1.76577949,2069.8,2068.5,2.05022236]
[1771075130312,1.20778781,2069.9,2068.7,2.05022236]
[1771075131521,1.20778781,2069.9,2068.6,2.76453837]
[1771075131522,1.7591448,2069.8,2068.6,1.556]
[1771075131714,1.7591448,2069.7,2068.3,2.05022236]
[1771075131914,1.20807963,2069.4,2068.2,0.001]
[1771075132127,1.7591448,2069.2,2068.2,0.001]
[1771075132323,1.519,2069.3,2068.2,2.05122236]
[1771075132560,2.07807963,2069.4,2068.4,2.05022236]
[1771075132561,0.87,2069.4,2068.4,2.05022236]
[1771075132723,1.20800295,2069.6,2068.4,2.05022236]
[1771075133447,1.20800295,2069.6,2068.5,2.05022236]
[1771075133613,1.1,2069.4,2068.5,2.05022236]
[1771075134219,2.30811812,2069.4,2068.6,2.05022236]
[1771075134420,2.30810648,2069.4,2068.6,2.05022236]
[1771075134852,2.308081,2069.4,2068.6,2.05022236]
[1771075135047,2.30812448,2069.4,2068.6,2.05022236]
[1771075135246,1.1,2069.4,2068.6,2.05022236]
[1771075136119,2.30808077,2069.4,2068.7,3.25871078]
[1771075136326,1.1,2069.4,2068.8,2.05022236]
[1771075136521,2.30809626,2069.4,2068.8,2.05022236]
[1771075137022,1.1,2069.4,2068.8,2.05022236]
[1771075137431,1.00000001,2069.3,2068.9,2.05022236]
[1771075137751,1.20776725,2070.0,2068.9,2.05022236]
[1771075138648,6.59896813,2070.1,2069.0,2.05022236]
[1771075139216,6.59896813,2070.1,2068.8,1.20838682]
[1771075139415,6.59896813,2070.1,2068.9,2.05022236]
[1771075139681,4.83072688,2070.1,2068.9,2.05022236]
[1771075139819,2.07765441,2070.2,2068.9,2.05022236]
[1771075140026,2.07875441,2070.2,2068.9,2.05022236]
[1771075140253,2.07875441,2070.2,2069.1,2.05022236]
[1771075140254,0.0011,2070.2,2069.1,2.05022236]
[1771075140459,0.0011,2070.2,2069.3,2.05022236]
[1771075140655,0.0011,2070.2,2069.5,2.05022236]
[1771075143333,0.0011,2070.2,2069.2,3.17804591]
[1771075143661,0.0011,2070.2,2069.2,1.96985522]
[1771075144348,0.0011,2070.2,2069.2,3.17805]
[1771075144525,0.0011,2070.2,2069.3,1.96985522]
[1771075145327,0.0011,2070.2,2068.7,1.96985522]
[1771075145328,1.74920421,2069.9,2068.7,1.96985522]
[1771075145751,1.20772946,2070.0,2068.8,1.96985522]
[1771075146118,1.20772946,2070.0,2068.9,1.96985522]
[1771075147330,1.20772946,2070.0,2069.1,1.96985522]
[1771075149052,1.20772946,2070.0,2069.1,1.565]
[1771075149265,1.20772946,2070.0,2069.1,1.96985522]
[1771075149461,1.20772946,2070.0,2069.1,4.74308416]
[1771075150059,1.20772946,2070.0,2069.2,1.96985522]
[1771075151470,1.20772946,2070.0,2069.4,1.96985522]
[1771075153390,1.20772946,2070.0,2069.3,1.96985522]
[1771075153586,1.20771168,2070.1,2069.4,1.96985522]
[1771075155289,4.83175026,2070.2,2069.4,1.96985522]
[1771075155290,1.20871486,2070.2,2069.4,1.96985522]
[1771075155573,0.0011,2070.2,2069.6,1.96985522]
[1771075156478,0.0011,2070.2,2069.7,1.558]
[1771075156665,0.0011,2070.2,2069.8,1.96985522]
[1771075158174,0.0011,2070.2,2069.9,1.96985522]
[1771075158793,0.0011,2070.4,2069.9,1.96985522]
[1771075159565,2.71927029,2071.0,2069.8,2.07783887]
[1771075159770,2.71927029,2071.0,2069.9,1.96985522]
[1771075159986,1.20827029,2071.0,2069.9,1.96985522]
[1771075160181,0.0011,2071.0,2070.1,1.96985522]
[1771075160384,0.0011,2071.0,2070.3,1.96985522]
[1771075161598,0.0011,2071.0,2070.3,3.52685522]
[1771075162369,0.0011,2071.0,2070.4,3.17735135]
[1771075162885,0.0011,2071.0,2070.3,1.556]
[1771075163271,0.0011,2071.0,2070.1,1.96985522]
[1771075163478,0.0011,2071.0,2070.2,1.555]
[1771075164507,1.68204011,2071.0,2070.0,1.554]
[1771075164804,0.0011,2071.0,2070.1,1.96985522]
[1771075166515,0.0011,2071.0,2070.0,1.96985522]
[1771075166704,0.0011,2071.0,2070.2,1.552]
[1771075166885,0.0011,2071.0,2070.3,1.96985522]
[1771075168525,0.0011,2071.0,2070.4,3.17735135]
[1771075169515,0.0011,2071.0,2070.5,1.96985522]
[1771075170700,0.0011,2071.0,2070.6,3.17723472]
[1771075172730,0.0011,2071.0,2070.8,1.20726289]
[1771075175335,0.0011,2071.2,2071.0,1.89605377]
[1771075175525,0.0011,2071.8,2071.1,3.44805377]
[1771075175526,1.20779494,2071.8,2071.1,3.44805377]